[Event "Early-Titled-Tuesday-Blitz-January-23-2024"]
[Site "Chess.com"]
[Date "2024.01.23"]
[Round "3"]
[White "Szczor"]
[Black "Philosopherrr"]
[Result "0-1"]
[WhiteElo "2586"]
[BlackElo "2438"]
[TimeControl "180+1"]
[EndTime "8:29:10 PST"]
[Termination "Philosopherrr won on time"]

1. d4 {[%clk 0:03:00.9]} 1... Nf6 {[%clk 0:02:59.4]} 2. c4 {[%clk 0:03:00.6]}
2... e6 {[%clk 0:02:59]} 3. Nf3 {[%clk 0:02:59.7]} 3... c5 {[%clk 0:02:58.6]} 4.
d5 {[%clk 0:02:59.6]} 4... exd5 {[%clk 0:02:58.6]} 5. cxd5 {[%clk 0:03:00.5]}
5... d6 {[%clk 0:02:59.3]} 6. Nc3 {[%clk 0:03:00.7]} 6... g6 {[%clk 0:02:59]} 7.
g3 {[%clk 0:03:00]} 7... Bg7 {[%clk 0:02:58.8]} 8. Bg2 {[%clk 0:03:00.1]} 8...
O-O {[%clk 0:02:58.9]} 9. Kf1 {[%clk 0:03:01]} 9... Nbd7 {[%clk 0:02:58.5]} 10.
e4 {[%clk 0:02:58.4]} 10... a6 {[%clk 0:02:56.9]} 11. a4 {[%clk 0:02:56.5]}
11... Re8 {[%clk 0:02:55.8]} 12. Qc2 {[%clk 0:02:55.5]} 12... Rb8 {[%clk
0:02:54.2]} 13. a5 {[%clk 0:02:54.3]} 13... b5 {[%clk 0:02:45.1]} 14. axb6
{[%clk 0:02:55.2]} 14... Qxb6 {[%clk 0:02:45.1]} 15. Kg1 {[%clk 0:02:53.3]}
15... Ng4 {[%clk 0:02:36.3]} 16. h3 {[%clk 0:02:51.2]} 16... Nge5 {[%clk
0:02:36.1]} 17. Kh2 {[%clk 0:02:46.9]} 17... Nxf3+ {[%clk 0:02:09.3]} 18. Bxf3
{[%clk 0:02:47.8]} 18... Ne5 {[%clk 0:02:09.5]} 19. Bg2 {[%clk 0:02:45.4]} 19...
f5 {[%clk 0:02:10.1]} 20. f4 {[%clk 0:02:37.5]} 20... Nf7 {[%clk 0:02:09]} 21.
Re1 {[%clk 0:02:34]} 21... Bd4 {[%clk 0:01:53.3]} 22. e5 {[%clk 0:01:58]} 22...
dxe5 {[%clk 0:01:41.1]} 23. fxe5 {[%clk 0:01:58.1]} 23... Rxe5 {[%clk
0:01:40.3]} 24. Bf4 {[%clk 0:01:42.9]} 24... Rxe1 {[%clk 0:01:38]} 25. Rxe1
{[%clk 0:01:43.8]} 25... Qxb2 {[%clk 0:01:37.6]} 26. Re8+ {[%clk 0:01:27.4]}
26... Kg7 {[%clk 0:01:36.4]} 27. Qxb2 {[%clk 0:01:27.5]} 27... Rxb2 {[%clk
0:01:34.7]} 28. Rxc8 {[%clk 0:01:27.3]} 28... Bxc3 {[%clk 0:01:29.8]} 29. Rxc5
{[%clk 0:01:27.3]} 29... Be5 {[%clk 0:01:27.7]} 30. Ra5 {[%clk 0:00:50]} 30...
Bxf4 {[%clk 0:01:23.2]} 31. gxf4 {[%clk 0:00:50.9]} 31... Rb6 {[%clk 0:01:22.5]}
32. Kg3 {[%clk 0:00:50.4]} 32... Nd6 {[%clk 0:01:20.8]} 33. Kf2 {[%clk
0:00:45.2]} 33... Nb7 {[%clk 0:01:14.5]} 34. Ra2 {[%clk 0:00:40.9]} 34... a5
{[%clk 0:01:12.2]} 35. Ke3 {[%clk 0:00:39.8]} 35... Kf6 {[%clk 0:01:11.2]} 36.
Rc2 {[%clk 0:00:33.4]} 36... Rb3+ {[%clk 0:01:06]} 37. Kd4 {[%clk 0:00:30.4]}
37... Rb4+ {[%clk 0:01:05.1]} 38. Ke3 {[%clk 0:00:30.4]} 38... a4 {[%clk
0:00:57.7]} 39. Rc6+ {[%clk 0:00:30]} 39... Ke7 {[%clk 0:00:57.2]} 40. Ra6
{[%clk 0:00:22.8]} 40... Nc5 {[%clk 0:00:37.1]} 41. Rc6 {[%clk 0:00:16.7]} 41...
Nd7 {[%clk 0:00:31.9]} 42. Re6+ {[%clk 0:00:16.6]} 42... Kf7 {[%clk 0:00:31.6]}
43. Ra6 {[%clk 0:00:16.7]} 43... Rb3+ {[%clk 0:00:27.9]} 44. Kd4 {[%clk
0:00:16.4]} 44... Rb4+ {[%clk 0:00:28]} 45. Ke3 {[%clk 0:00:16.8]} 45... h6
{[%clk 0:00:28]} 46. Bf1 {[%clk 0:00:16.4]} 46... g5 {[%clk 0:00:26.3]} 47. Rxh6
{[%clk 0:00:14.2]} 47... gxf4+ {[%clk 0:00:25.6]} 48. Kf2 {[%clk 0:00:13.3]}
48... Nf6 {[%clk 0:00:25.2]} 49. d6 {[%clk 0:00:10]} 49... a3 {[%clk 0:00:24.7]}
50. Rh8 {[%clk 0:00:09.7]} 50... Rb3 {[%clk 0:00:20.4]} 51. Bc4+ {[%clk
0:00:09.2]} 51... Kg7 {[%clk 0:00:19.5]} 52. Ra8 {[%clk 0:00:06.8]} 52... Ne4+
{[%clk 0:00:17.8]} 53. Ke1 {[%clk 0:00:05]} 53... Rb1+ {[%clk 0:00:17.7]} 54.
Ke2 {[%clk 0:00:05.5]} 54... Rb2+ {[%clk 0:00:18]} 55. Kf3 {[%clk 0:00:05.8]}
55... Nxd6 {[%clk 0:00:17.3]} 56. Be6 {[%clk 0:00:03.9]} 56... Kf6 {[%clk
0:00:17]} 57. Bd7 {[%clk 0:00:04.5]} 57... Ke5 {[%clk 0:00:16.5]} 58. Ra5+
{[%clk 0:00:04.3]} 58... Kf6 {[%clk 0:00:16.5]} 59. Kxf4 {[%clk 0:00:05.2]}
59... Rb4+ {[%clk 0:00:16.7]} 60. Kf3 {[%clk 0:00:05.4]} 60... Rb3+ {[%clk
0:00:17.2]} 61. Kf4 {[%clk 0:00:06.1]} 61... Rxh3 {[%clk 0:00:17.1]} 62. Ra6
{[%clk 0:00:06.4]} 62... Rd3 {[%clk 0:00:15.8]} 63. Bxf5 {[%clk 0:00:06]} 63...
Rd4+ {[%clk 0:00:15.6]} 64. Ke3 {[%clk 0:00:06.5]} 64... Ke5 {[%clk 0:00:16.5]}
65. Ra5+ {[%clk 0:00:05.3]} 65... Rd5 {[%clk 0:00:15.8]} 66. Rxd5+ {[%clk
0:00:04.4]} 66... Kxd5 {[%clk 0:00:16.6]} 67. Bh7 {[%clk 0:00:04.5]} 67... Kc4
{[%clk 0:00:16]} 68. Kd2 {[%clk 0:00:04.7]} 68... Kb3 {[%clk 0:00:15.9]} 69.
Bg8+ {[%clk 0:00:04.8]} 69... Kb2 {[%clk 0:00:16.2]} 70. Kd3 {[%clk 0:00:03.9]}
70... Nb7 {[%clk 0:00:16.3]} 71. Kd4 {[%clk 0:00:02.7]} 71... Na5 {[%clk
0:00:16.9]} 72. Kc5 {[%clk 0:00:03.3]} 72... Nb3+ {[%clk 0:00:17.8]} 73. Kb4
{[%clk 0:00:03.6]} 73... a2 {[%clk 0:00:18.1]} 0-1

[Event "Early-Titled-Tuesday-Blitz-January-23-2024"]
[Site "Chess.com"]
[Date "2024.01.23"]
[Round "3"]
[White "tomesao"]
[Black "Lennis93"]
[Result "1-0"]
[WhiteElo "2505"]
[BlackElo "2668"]
[TimeControl "180+1"]
[EndTime "8:29:12 PST"]
[Termination "tomesao won by checkmate"]

1. d4 {[%clk 0:03:00.9]} 1... Nf6 {[%clk 0:02:41.9]} 2. Nf3 {[%clk 0:03:00.7]}
2... c5 {[%clk 0:02:40.9]} 3. d5 {[%clk 0:02:58.6]} 3... g6 {[%clk 0:02:40.7]}
4. Nc3 {[%clk 0:02:58.2]} 4... Bg7 {[%clk 0:02:40.8]} 5. e4 {[%clk 0:02:58.5]}
5... d6 {[%clk 0:02:41.3]} 6. Bb5+ {[%clk 0:02:57.1]} 6... Nbd7 {[%clk
0:02:40.9]} 7. a4 {[%clk 0:02:52.7]} 7... a6 {[%clk 0:02:41.3]} 8. Be2 {[%clk
0:02:51.7]} 8... O-O {[%clk 0:02:41.8]} 9. h3 {[%clk 0:02:51.8]} 9... Ne8 {[%clk
0:02:41.9]} 10. Bf4 {[%clk 0:02:50.8]} 10... b6 {[%clk 0:02:41.6]} 11. O-O
{[%clk 0:02:50.2]} 11... Rb8 {[%clk 0:02:40.7]} 12. Re1 {[%clk 0:02:49.2]} 12...
Nc7 {[%clk 0:02:40.3]} 13. Qd2 {[%clk 0:02:39.7]} 13... b5 {[%clk 0:02:40.6]}
14. axb5 {[%clk 0:02:38.1]} 14... axb5 {[%clk 0:02:41.5]} 15. Bh6 {[%clk
0:02:37.9]} 15... b4 {[%clk 0:02:41.3]} 16. Nd1 {[%clk 0:02:37.8]} 16... f6
{[%clk 0:02:36.4]} 17. h4 {[%clk 0:02:33]} 17... Ne5 {[%clk 0:02:33.8]} 18. Nxe5
{[%clk 0:02:29.3]} 18... fxe5 {[%clk 0:02:34.7]} 19. g3 {[%clk 0:02:06.5]} 19...
Qd7 {[%clk 0:02:32.1]} 20. Bxg7 {[%clk 0:02:03.7]} 20... Kxg7 {[%clk 0:02:31.8]}
21. Ne3 {[%clk 0:02:04.6]} 21... Nb5 {[%clk 0:02:23]} 22. c3 {[%clk 0:01:51.9]}
22... h5 {[%clk 0:02:14.4]} 23. Ra5 {[%clk 0:01:44.8]} 23... bxc3 {[%clk
0:02:04.9]} 24. bxc3 {[%clk 0:01:44.2]} 24... Nc7 {[%clk 0:02:05.2]} 25. Ra7
{[%clk 0:01:40.9]} 25... Rb7 {[%clk 0:02:05]} 26. Rea1 {[%clk 0:01:38.5]} 26...
Kf7 {[%clk 0:01:52.9]} 27. Qd1 {[%clk 0:01:19.1]} 27... Ne8 {[%clk 0:01:51.8]}
28. Rxb7 {[%clk 0:01:12.2]} 28... Qxb7 {[%clk 0:01:51.7]} 29. Qa4 {[%clk
0:01:00]} 29... Nf6 {[%clk 0:01:47.3]} 30. Bd3 {[%clk 0:00:57.2]} 30... Qb2
{[%clk 0:01:44.8]} 31. Qa3 {[%clk 0:00:46.7]} 31... Qd2 {[%clk 0:01:43.8]} 32.
Rd1 {[%clk 0:00:41.2]} 32... Qxd1+ {[%clk 0:01:37]} 33. Nxd1 {[%clk 0:00:39.9]}
33... Bg4 {[%clk 0:01:37.9]} 34. Ne3 {[%clk 0:00:39.4]} 34... Bf3 {[%clk
0:01:38.5]} 35. Qb2 {[%clk 0:00:36.5]} 35... Ra8 {[%clk 0:01:38.3]} 36. Nf1
{[%clk 0:00:18.5]} 36... Bxe4 {[%clk 0:01:35.2]} 37. Bxe4 {[%clk 0:00:18.2]}
37... Nxe4 {[%clk 0:01:36.1]} 38. Nd2 {[%clk 0:00:17.1]} 38... Nf6 {[%clk
0:01:36.7]} 39. c4 {[%clk 0:00:16.8]} 39... Ra4 {[%clk 0:01:37.3]} 40. Qc3
{[%clk 0:00:16.3]} 40... Ra2 {[%clk 0:01:37]} 41. Qd3 {[%clk 0:00:16.1]} 41...
Ra1+ {[%clk 0:01:15.7]} 42. Kg2 {[%clk 0:00:15.7]} 42... Rd1 {[%clk 0:01:16.1]}
43. Qe2 {[%clk 0:00:15.1]} 43... Rc1 {[%clk 0:01:16.3]} 44. Ne4 {[%clk 0:00:15]}
44... Ng4 {[%clk 0:01:13.3]} 45. Ng5+ {[%clk 0:00:14.5]} 45... Ke8 {[%clk
0:01:13.2]} 46. Qd3 {[%clk 0:00:13.6]} 46... Kd7 {[%clk 0:00:59.9]} 47. Qxg6
{[%clk 0:00:13.6]} 47... Rxc4 {[%clk 0:01:00.1]} 48. Qxh5 {[%clk 0:00:12.9]}
48... Nf6 {[%clk 0:00:58.9]} 49. Qf7 {[%clk 0:00:12.7]} 49... Kd8 {[%clk
0:00:24.3]} 50. Qe6 {[%clk 0:00:12.1]} 50... Ne4 {[%clk 0:00:07.9]} 51. Nf7+
{[%clk 0:00:12.1]} 51... Kc7 {[%clk 0:00:07.7]} 52. Ng5 {[%clk 0:00:09.9]} 52...
Nc3 {[%clk 0:00:02.4]} 53. Qxe7+ {[%clk 0:00:10]} 53... Kb6 {[%clk 0:00:02.5]}
54. Qxd6+ {[%clk 0:00:09.9]} 54... Kb5 {[%clk 0:00:03.1]} 55. h5 {[%clk
0:00:09.6]} 55... Rd4 {[%clk 0:00:04]} 56. Qc6+ {[%clk 0:00:09.3]} 56... Kc4
{[%clk 0:00:03.5]} 57. d6 {[%clk 0:00:09.5]} 57... e4 {[%clk 0:00:03.2]} 58. d7
{[%clk 0:00:09]} 58... e3 {[%clk 0:00:04.1]} 59. Qe6+ {[%clk 0:00:06.4]} 59...
Kb4 {[%clk 0:00:02.1]} 60. Qxe3 {[%clk 0:00:05.5]} 60... Rxd7 {[%clk 0:00:02.2]}
61. Qf4+ {[%clk 0:00:05.6]} 61... Rd4 {[%clk 0:00:01.9]} 62. Qxd4+ {[%clk
0:00:05.4]} 62... cxd4 {[%clk 0:00:02.8]} 63. h6 {[%clk 0:00:05.4]} 63... d3
{[%clk 0:00:03]} 64. Nf3 {[%clk 0:00:03.9]} 64... Ne4 {[%clk 0:00:03.6]} 65. h7
{[%clk 0:00:04.1]} 65... d2 {[%clk 0:00:03.8]} 66. Nxd2 {[%clk 0:00:03.1]} 66...
Nxd2 {[%clk 0:00:04.7]} 67. h8=Q {[%clk 0:00:03.5]} 67... Nc4 {[%clk 0:00:05.6]}
68. Qg8 {[%clk 0:00:03.8]} 68... Kc3 {[%clk 0:00:06.5]} 69. Qh8+ {[%clk
0:00:04.7]} 69... Kd3 {[%clk 0:00:06.3]} 70. Qh7+ {[%clk 0:00:05.6]} 70... Kd4
{[%clk 0:00:07]} 71. Qh6 {[%clk 0:00:06.3]} 71... Kd5 {[%clk 0:00:07.8]} 72.
Qh5+ {[%clk 0:00:07.2]} 72... Ne5 {[%clk 0:00:08.2]} 73. Qh4 {[%clk 0:00:08.1]}
73... Ke6 {[%clk 0:00:08.3]} 74. Qh3+ {[%clk 0:00:08.9]} 74... Kf6 {[%clk
0:00:08]} 75. Qh2 {[%clk 0:00:09.8]} 75... Ng4 {[%clk 0:00:08.3]} 76. Qg1 {[%clk
0:00:10.7]} 76... Ne5 {[%clk 0:00:08.4]} 77. Qf1 {[%clk 0:00:11.2]} 77... Ng4
{[%clk 0:00:08.3]} 78. Qa1+ {[%clk 0:00:11]} 78... Ne5 {[%clk 0:00:08.6]} 79. f4
{[%clk 0:00:10.7]} 79... Kf5 {[%clk 0:00:08.8]} 80. Qxe5+ {[%clk 0:00:10.8]}
80... Kg4 {[%clk 0:00:09.7]} 81. Qg5# {[%clk 0:00:10.8]} 1-0

[Event "Early-Titled-Tuesday-Blitz-January-23-2024"]
[Site "Chess.com"]
[Date "2024.01.23"]
[Round "3"]
[White "Maxfan2008"]
[Black "JimDiGrease"]
[Result "0-1"]
[WhiteElo "2526"]
[BlackElo "2961"]
[TimeControl "180+1"]
[EndTime "8:29:15 PST"]
[Termination "JimDiGrease won on time"]

1. d4 {[%clk 0:03:00.9]} 1... d5 {[%clk 0:02:59.9]} 2. c4 {[%clk 0:03:00.8]}
2... e6 {[%clk 0:03:00.4]} 3. Nc3 {[%clk 0:03:00.8]} 3... c6 {[%clk 0:03:01]} 4.
e3 {[%clk 0:02:59.4]} 4... Nf6 {[%clk 0:03:00.6]} 5. Nf3 {[%clk 0:02:59.5]} 5...
Nbd7 {[%clk 0:03:00.4]} 6. Bd3 {[%clk 0:02:59.3]} 6... dxc4 {[%clk 0:03:01]} 7.
Bxc4 {[%clk 0:03:00.2]} 7... b5 {[%clk 0:03:01.5]} 8. Bd3 {[%clk 0:03:00]} 8...
Bb7 {[%clk 0:03:02.2]} 9. e4 {[%clk 0:02:59.2]} 9... b4 {[%clk 0:03:00.2]} 10.
Na4 {[%clk 0:02:59.2]} 10... c5 {[%clk 0:03:00.4]} 11. e5 {[%clk 0:02:59.5]}
11... Nd5 {[%clk 0:03:00.7]} 12. O-O {[%clk 0:02:59.2]} 12... h6 {[%clk
0:03:01.4]} 13. Nxc5 {[%clk 0:02:46]} 13... Nxc5 {[%clk 0:02:56.1]} 14. dxc5
{[%clk 0:02:44.9]} 14... Bxc5 {[%clk 0:02:57]} 15. Qa4+ {[%clk 0:02:26.6]} 15...
Ke7 {[%clk 0:02:54.6]} 16. Be2 {[%clk 0:01:59.8]} 16... Qb6 {[%clk 0:02:54]} 17.
a3 {[%clk 0:01:49.6]} 17... a5 {[%clk 0:02:44.5]} 18. Bd2 {[%clk 0:01:39.5]}
18... Bc6 {[%clk 0:02:36.3]} 19. Qc2 {[%clk 0:01:32.7]} 19... Rac8 {[%clk
0:02:34.7]} 20. axb4 {[%clk 0:01:25.9]} 20... Nxb4 {[%clk 0:02:20.5]} 21. Qb1
{[%clk 0:01:14.5]} 21... Rhd8 {[%clk 0:02:04.5]} 22. Bc3 {[%clk 0:01:14]} 22...
Ra8 {[%clk 0:01:38.9]} 23. Qh7 {[%clk 0:01:10.4]} 23... Rg8 {[%clk 0:01:37.7]}
24. Nd2 {[%clk 0:01:08]} 24... Nd5 {[%clk 0:01:23.4]} 25. Nc4 {[%clk 0:00:56.1]}
25... Qc7 {[%clk 0:01:19.1]} 26. Bxa5 {[%clk 0:00:52]} 26... Qb7 {[%clk
0:01:18.6]} 27. Nd6 {[%clk 0:00:36.2]} 27... Qxb2 {[%clk 0:01:05.9]} 28. Bf3
{[%clk 0:00:18.4]} 28... Qxe5 {[%clk 0:00:52.8]} 29. Nc4 {[%clk 0:00:18.1]}
29... Qg5 {[%clk 0:00:46.5]} 30. Rad1 {[%clk 0:00:13]} 30... g6 {[%clk
0:00:33.9]} 31. Bd2 {[%clk 0:00:12.5]} 31... Qf6 {[%clk 0:00:29.8]} 32. Qxh6
{[%clk 0:00:11.3]} 32... Rh8 {[%clk 0:00:16.8]} 33. Qg5 {[%clk 0:00:11.5]} 33...
Rhd8 {[%clk 0:00:11.6]} 34. Ne5 {[%clk 0:00:09.7]} 34... Rac8 {[%clk 0:00:08.2]}
35. Nxc6+ {[%clk 0:00:08.1]} 35... Rxc6 {[%clk 0:00:09.1]} 36. Qxf6+ {[%clk
0:00:08]} 36... Kxf6 {[%clk 0:00:08.7]} 37. Bc3+ {[%clk 0:00:07.3]} 37... Ke7
{[%clk 0:00:06]} 38. Rfe1 {[%clk 0:00:03.4]} 38... Kf8 {[%clk 0:00:03.5]} 39.
Bf6 {[%clk 0:00:02]} 39... Rd7 {[%clk 0:00:02.3]} 40. Bxd5 {[%clk 0:00:01.6]}
40... exd5 {[%clk 0:00:02.2]} 41. Bd4 {[%clk 0:00:02.2]} 41... Be7 {[%clk
0:00:01.8]} 42. Be5 {[%clk 0:00:02.2]} 42... Re6 {[%clk 0:00:02.3]} 43. Bd4
{[%clk 0:00:02.2]} 43... Rd8 {[%clk 0:00:03]} 44. Rxe6 {[%clk 0:00:01.4]} 44...
fxe6 {[%clk 0:00:03.9]} 45. h3 {[%clk 0:00:02.1]} 45... Kf7 {[%clk 0:00:04.6]}
46. f4 {[%clk 0:00:02.4]} 46... Bd6 {[%clk 0:00:05.2]} 47. g3 {[%clk 0:00:02.7]}
47... Rb8 {[%clk 0:00:05]} 48. Kg2 {[%clk 0:00:03.2]} 48... Ra8 {[%clk
0:00:04.4]} 49. Kf3 {[%clk 0:00:03.5]} 49... Ra3+ {[%clk 0:00:04.6]} 50. Kg4
{[%clk 0:00:03.9]} 50... Ra4 {[%clk 0:00:05.3]} 51. h4 {[%clk 0:00:04.1]} 51...
Rc4 {[%clk 0:00:04.6]} 52. Be3 {[%clk 0:00:03]} 52... Be7 {[%clk 0:00:03]} 53.
Rd3 {[%clk 0:00:03]} 53... Re4 {[%clk 0:00:03]} 54. Bf2 {[%clk 0:00:02.7]} 54...
Bf6 {[%clk 0:00:03.5]} 55. Rb3 {[%clk 0:00:02.6]} 55... Rc4 {[%clk 0:00:02.8]}
56. Rb7+ {[%clk 0:00:03.1]} 56... Kf8 {[%clk 0:00:03.5]} 57. Bb6 {[%clk
0:00:03.4]} 57... Rc6 {[%clk 0:00:02.9]} 58. h5 {[%clk 0:00:03.4]} 58... gxh5+
{[%clk 0:00:02.9]} 59. Kxh5 {[%clk 0:00:04.3]} 59... Rc3 {[%clk 0:00:02.4]} 60.
g4 {[%clk 0:00:03.6]} 60... Rg3 {[%clk 0:00:02.2]} 61. Kg6 {[%clk 0:00:03.9]}
61... Bc3 {[%clk 0:00:01.7]} 62. Bc5+ {[%clk 0:00:04]} 62... Ke8 {[%clk
0:00:02.3]} 63. Re7+ {[%clk 0:00:04.3]} 63... Kd8 {[%clk 0:00:03]} 64. Rxe6
{[%clk 0:00:04.8]} 64... Rxg4+ {[%clk 0:00:03.2]} 65. Kf5 {[%clk 0:00:05.3]}
65... Rg2 {[%clk 0:00:03.3]} 66. Rd6+ {[%clk 0:00:05.4]} 66... Kc7 {[%clk
0:00:04]} 67. Rxd5 {[%clk 0:00:06.1]} 67... Kc6 {[%clk 0:00:04.7]} 68. Re5
{[%clk 0:00:05.1]} 68... Bxe5 {[%clk 0:00:04.7]} 69. fxe5 {[%clk 0:00:05.2]}
69... Kxc5 {[%clk 0:00:05.2]} 70. e6 {[%clk 0:00:05.7]} 70... Kd6 {[%clk
0:00:06.1]} 71. Kf6 {[%clk 0:00:06]} 71... Rf2+ {[%clk 0:00:06.8]} 0-1

[Event "Early-Titled-Tuesday-Blitz-January-23-2024"]
[Site "Chess.com"]
[Date "2024.01.23"]
[Round "3"]
[White "wadsy27"]
[Black "abhidabhi"]
[Result "1/2-1/2"]
[WhiteElo "2639"]
[BlackElo "2923"]
[TimeControl "180+1"]
[EndTime "8:29:26 PST"]
[Termination "Game drawn by repetition"]

1. c4 {[%clk 0:02:58.9]} 1... e5 {[%clk 0:02:56.8]} 2. Nf3 {[%clk 0:02:57.8]}
2... e4 {[%clk 0:02:54.5]} 3. Nd4 {[%clk 0:02:57.8]} 3... Nc6 {[%clk 0:02:54.8]}
4. e3 {[%clk 0:02:57.8]} 4... Nxd4 {[%clk 0:02:54.3]} 5. exd4 {[%clk 0:02:57.5]}
5... Nf6 {[%clk 0:02:54.5]} 6. Nc3 {[%clk 0:02:57]} 6... d5 {[%clk 0:02:54.1]}
7. d3 {[%clk 0:02:57.4]} 7... exd3 {[%clk 0:02:52.5]} 8. Bxd3 {[%clk 0:02:56.4]}
8... dxc4 {[%clk 0:02:52.7]} 9. Bxc4 {[%clk 0:02:56.8]} 9... Be7 {[%clk
0:02:47.1]} 10. O-O {[%clk 0:02:54.5]} 10... O-O {[%clk 0:02:46.6]} 11. Bf4
{[%clk 0:02:44.5]} 11... h6 {[%clk 0:02:43.4]} 12. h3 {[%clk 0:02:36.4]} 12...
Bd6 {[%clk 0:02:40.9]} 13. Qd2 {[%clk 0:02:26.9]} 13... Bf5 {[%clk 0:02:33.9]}
14. Rfe1 {[%clk 0:02:20.5]} 14... a6 {[%clk 0:02:28.7]} 15. a3 {[%clk 0:02:14]}
15... Qd7 {[%clk 0:02:26]} 16. Rad1 {[%clk 0:02:12.2]} 16... Rfe8 {[%clk
0:02:25.1]} 17. Be5 {[%clk 0:02:07.6]} 17... Be6 {[%clk 0:01:59.4]} 18. Bd3
{[%clk 0:01:53.4]} 18... Nd5 {[%clk 0:01:39.4]} 19. Ne4 {[%clk 0:01:48.8]} 19...
Rad8 {[%clk 0:01:15.5]} 20. Nxd6 {[%clk 0:01:37.9]} 20... cxd6 {[%clk 0:01:15]}
21. Bg3 {[%clk 0:01:38.1]} 21... Bf5 {[%clk 0:00:59.9]} 22. Bc4 {[%clk
0:01:32.1]} 22... Nf6 {[%clk 0:00:48]} 23. Rc1 {[%clk 0:01:12.2]} 23... Rxe1+
{[%clk 0:00:41.6]} 24. Rxe1 {[%clk 0:01:11.4]} 24... Rc8 {[%clk 0:00:40.6]} 25.
Bb3 {[%clk 0:01:08.5]} 25... Ne4 {[%clk 0:00:40.4]} 26. Qf4 {[%clk 0:01:07.5]}
26... Nxg3 {[%clk 0:00:37]} 27. Qxg3 {[%clk 0:01:07.3]} 27... b5 {[%clk
0:00:32.1]} 28. Kh2 {[%clk 0:01:01.8]} 28... Bc2 {[%clk 0:00:30.8]} 29. Bd5
{[%clk 0:00:58.8]} 29... Bf5 {[%clk 0:00:21.9]} 30. Qe3 {[%clk 0:00:45.7]} 30...
Kf8 {[%clk 0:00:19]} 31. b4 {[%clk 0:00:35.7]} 31... g5 {[%clk 0:00:12.7]} 32.
h4 {[%clk 0:00:34.1]} 32... Qd8 {[%clk 0:00:11.7]} 33. Qf3 {[%clk 0:00:30.2]}
33... Qd7 {[%clk 0:00:03.7]} 34. Qg3 {[%clk 0:00:23]} 34... gxh4 {[%clk
0:00:02.7]} 35. Qxh4 {[%clk 0:00:22.7]} 35... Kg7 {[%clk 0:00:01.9]} 36. Re3
{[%clk 0:00:20.5]} 36... Bg6 {[%clk 0:00:01.6]} 37. Rf3 {[%clk 0:00:17.9]} 37...
h5 {[%clk 0:00:01.6]} 38. Rg3 {[%clk 0:00:16.1]} 38... Kh7 {[%clk 0:00:01.5]}
39. Be4 {[%clk 0:00:15.5]} 39... Qe6 {[%clk 0:00:01.5]} 40. Bxg6+ {[%clk
0:00:14.3]} 40... fxg6 {[%clk 0:00:02.4]} 41. Re3 {[%clk 0:00:14.3]} 41... Qf5
{[%clk 0:00:01.7]} 42. Re7+ {[%clk 0:00:09.9]} 42... Kh6 {[%clk 0:00:02]} 43.
Qg3 {[%clk 0:00:08.4]} 43... Rf8 {[%clk 0:00:02.6]} 44. f3 {[%clk 0:00:07.4]}
44... Qf4 {[%clk 0:00:02.8]} 45. Qxf4+ {[%clk 0:00:06.1]} 45... Rxf4 {[%clk
0:00:03.7]} 46. Ra7 {[%clk 0:00:06.4]} 46... Rxd4 {[%clk 0:00:03.9]} 47. Rxa6
{[%clk 0:00:07]} 47... Rd3 {[%clk 0:00:04.3]} 48. Ra5 {[%clk 0:00:05.5]} 48...
g5 {[%clk 0:00:01.7]} 49. Rxb5 {[%clk 0:00:04.9]} 49... Rxa3 {[%clk 0:00:02.1]}
50. Rd5 {[%clk 0:00:04.8]} 50... Ra6 {[%clk 0:00:02.7]} 51. g4 {[%clk
0:00:04.7]} 51... hxg4 {[%clk 0:00:01.5]} 52. fxg4 {[%clk 0:00:04.8]} 52... Kg6
{[%clk 0:00:01.7]} 53. b5 {[%clk 0:00:05.1]} 53... Rb6 {[%clk 0:00:01.5]} 54.
Kg3 {[%clk 0:00:05.5]} 54... Kf6 {[%clk 0:00:02]} 55. Kf3 {[%clk 0:00:05.9]}
55... Ke6 {[%clk 0:00:02.4]} 56. Rxg5 {[%clk 0:00:05.9]} 56... Kf6 {[%clk
0:00:01.8]} 57. Rf5+ {[%clk 0:00:05.8]} 57... Ke6 {[%clk 0:00:02.3]} 58. Rh5
{[%clk 0:00:05.7]} 58... Kf6 {[%clk 0:00:02.1]} 59. Ke4 {[%clk 0:00:05.7]} 59...
Rb8 {[%clk 0:00:02.7]} 60. Kd4 {[%clk 0:00:04.6]} 60... Ke6 {[%clk 0:00:03.1]}
61. Rh6+ {[%clk 0:00:03.5]} 61... Kd7 {[%clk 0:00:03.2]} 62. Kc4 {[%clk
0:00:04]} 62... Rg8 {[%clk 0:00:03.2]} 63. Rh7+ {[%clk 0:00:04.1]} 63... Kc8
{[%clk 0:00:02.7]} 64. Kd5 {[%clk 0:00:04.3]} 64... Rxg4 {[%clk 0:00:02.5]} 65.
Kxd6 {[%clk 0:00:04.2]} 65... Rc4 {[%clk 0:00:02.6]} 66. b6 {[%clk 0:00:03.8]}
66... Rc1 {[%clk 0:00:02.6]} 67. b7+ {[%clk 0:00:04.3]} 67... Kb8 {[%clk
0:00:02.6]} 68. Kd5 {[%clk 0:00:04.9]} 68... Rb1 {[%clk 0:00:02.8]} 69. Kc6
{[%clk 0:00:05]} 69... Rc1+ {[%clk 0:00:03.3]} 70. Kb6 {[%clk 0:00:05.5]} 70...
Rb1+ {[%clk 0:00:03.9]} 71. Kc6 {[%clk 0:00:06.1]} 71... Rc1+ {[%clk 0:00:04.5]}
72. Kb6 {[%clk 0:00:06.7]} 72... Rb1+ {[%clk 0:00:05.2]} 73. Kc6 {[%clk
0:00:07.3]} 1/2-1/2